Cogmind - Beta 13 @@@ ROGUE MODE // 2024.04.04 @ 19:54:12 Player: Senjai Result: Destroyed by YI-UF0 with YI-UF0's Doublenader Performance ------------- Evolutions (0) 0 Regions Visited (4) 800 Robots Destroyed (12) 60 Value Destroyed (177) 177 Prototype IDs (1) 20 Alien Tech Used (0) 0 Bonus (300) 300 TOTAL SCORE: 1357 Bonus ------- Aligned with FarCom 300 Cogmind --------- Core Integrity 0/250 Matter 254/300 Energy 99/100 System Corruption 11% Temperature Cool (0) Movement Rolling (115) Ox1 Location -9/Mines Parts ------- > --- POWER (1) -------- (None) > --- PROPULSION (2) --- Compact Wheel > --- UTILITY (2) ------ Large Storage Unit Hardened Light Armor Plating > --- WEAPON (2) ------- Particle Cannon Longsword +1 > --- INVENTORY (15) --- Light Ion Engine Aluminum Leg Cooling System Cooling System High-capacity Storage Unit Visual Processing Unit Targeting Computer Hardened Light Armor Plating Hardened Light Armor Plating Particle Cannon Assault Rifle Light Assault Rifle Peak State ------------ > --- POWER ------------ Ion Engine > --- PROPULSION ------- Light Treads Light Treads > --- UTILITY ---------- Large Storage Unit Hardened Light Armor Plating > --- WEAPON ----------- Assault Rifle Longsword +1 > --- INVENTORY -------- Light Ion Engine Aluminum Leg Compact Wheel Cooling System Cooling System High-capacity Storage Unit Visual Processing Unit Targeting Computer Hardened Light Armor Plating Hardened Light Armor Plating Heavy EM Pulse Gun Particle Cannon Particle Cannon Assault Rifle [Rating: 17] Favorites ----------- Power Ion Engine Engine Ion Engine Propulsion Light Treads Treads Light Treads Wheel Compact Wheel Utility Large Storage Unit Device Seismic Detector Storage Large Storage Unit Processor Visual Processing Unit Protection Hardened Light Armor Plating Weapon Assault Rifle Energy Gun Heavy EM Pulse Gun Energy Cannon Particle Cannon Ballistic Gun Assault Rifle Special Weapon Mining Laser Slashing Weapon Longsword +1 Build | -11 -10 -10 -10 -9 ------- Run | Yrd Mat Min Exi Min Slots Evolved . | . . . . . Power . | . . . . . Propulsion . | . . . . . Utility . | . . . . . Weapon . | . . . . . Parts Attached 24 | 7 5 1 2 9 Power 2 | 1 . . . 1 Engine 2 | 1 . . . 1 Core . | . . . . . Reactor . | . . . . . Propulsion 3 | 2 . . . 1 Treads 2 | 2 . . . . Leg . | . . . . . Wheel 1 | . . . . 1 Hover . | . . . . . Flight . | . . . . . Utility 8 | 2 4 . 1 1 Device 2 | 1 1 . . . Storage 3 | 1 2 . . . Processor 1 | . 1 . . . Hackware . | . . . . . Protection 2 | . . . 1 1 Artifact . | . . . . . Weapon 11 | 2 1 1 1 6 Energy Gun 2 | . . 1 . 1 Energy Cannon 1 | . . . . 1 Ballistic Gun 5 | 2 . . . 3 Ballistic Cannon . | . . . . . Launcher . | . . . . . Special Weapon 1 | . 1 . . . Impact Weapon . | . . . . . Slashing Weapon 2 | . . . 1 1 Piercing Weapon . | . . . . . Special Melee Weapon . | . . . . . Unidentified Prototypes 1 | . . . 1 . Parts Lost 6 | . . 1 . 5 Power 1 | . . . . 1 Propulsion 2 | . . . . 2 Utility . | . . . . . Weapon 3 | . . 1 . 2 Highest Loss Streak 4 | . . 1 . 4 To Critical Strikes . | . . . . . Average Slot Usage (%) 86 | . 99 99 73 90 Engine 13 | . 14 14 14 12 Treads 26 | . 28 28 28 13 Device 4 | . 13 . . . Storage 14 | . 14 14 14 14 Processor 1 | . . 14 . . Protection 7 | . . . 13 14 Ballistic Gun 11 | . 24 14 . 20 Special Weapon 2 | . 4 8 . . Slashing Weapon 1 | . . . 2 6 Naked Turns . | . . . . . Heaviest Build 37 | 15 30 30 33 37 Greatest Support 40 | 40 40 40 40 40 Greatest Overweight (x) 2 | . . . . 2 Average Overweight (x) . | . . . . 1 Largest Inventory Capacity 15 | 8 15 15 15 15 Average Capacity 14 | 7 14 15 15 15 Most Carried 15 | 5 15 15 15 15 Average Carried 13 | 2 12 14 14 13 Final Capacity 15 | 8 15 15 15 15 Final Carried 15 | 5 15 15 15 12 Class Distribution -------------------- 100% | Mutant Dominant Class ---------------- Mutant | -10/Materials Mutant | -10/Mines Mutant | -10/Exiles Mutant | -9/Mines Resources | -11 -10 -10 -10 -9 ----------- Run | Yrd Mat Min Exi Min Matter Collected 710 | 314 26 196 . 174 Remotely . | . . . . . Salvage Created 406 | 138 38 85 . 145 Parts 20 | 7 4 7 . 2 Haulers Intercepted . | . . . . . Recyclers Shooed 1 | . 1 . . . Parts Field Recycled . | . . . . . Retrieved Matter . | . . . . . Parts Self-Destructed . | . . . . . Prevented . | . . . . . Kills | -11 -10 -10 -10 -9 ------- Run | Yrd Mat Min Exi Min Combat Hostiles Destroyed 15 | . 1 5 . 9 Melee 3 | . . . . 3 Guns 12 | . 1 5 . 6 Classes Destroyed 6 | 2 2 1 . 1 Tunneler 2 | 2 . . . . Recycler 1 | 1 . . . . Watcher 1 | . 1 . . . Swarmer 6 | . 1 3 . 2 Grunt 2 | . . 2 . . Assembled 7 | . . . . 7 Best Kill Streak 4 | 2 1 3 . 4 Combat Bots Only 4 | . 1 3 . 4 Max Kills in Single Turn 2 | 1 1 2 . 2 Gunslinging 1 | . . 1 . 1 Exploded . | . . . . . Melee 1 | . . . . 1 Uniques/NPCs Destroyed . | . . . . . Combat | -11 -10 -10 -10 -9 -------- Run | Yrd Mat Min Exi Min Hostile Shots Fired 98 | . . 38 . 60 Missed 22 | . . 11 . 11 Damage Taken 1381 | . . 318 . 1063 Core 258 | . . 65 . 193 Absorbed by Shields . | . . . . . Core Remaining (%) 100 | 100 . . . . Volleys Fired 50 | 9 10 12 . 19 Largest 2 | 2 2 2 . 2 Hottest 120 | 40 100 120 . 68 Shots Fired 84 | 18 13 18 . 35 Gun 74 | 18 10 12 . 34 Cannon 1 | . . . . 1 Launcher . | . . . . . Special 9 | . 3 6 . . Kinetic 70 | 18 10 11 . 31 Thermal 10 | . 3 6 . 1 Explosive . | . . . . . Electromagnetic 4 | . . 1 . 3 Robot Hit Streak 8 | 8 3 7 . 8 Robot Miss Streak 3 | 3 3 2 . 3 Penetration Max . | . . . . . Secondary Targets 4 | . . 1 . 3 Max Gunslinging Chain 1 | . . 1 . 1 Shots Hit Robots 52 | 11 5 13 . 23 Core Hits 29 | 4 3 7 . 15 Critical Kills . | . . . . . Critical Parts Destroyed . | . . . . . Critical Strikes . | . . . . . Melee Attacks 16 | . . . . 16 Impact . | . . . . . Slashing 16 | . . . . 16 Piercing . | . . . . . Sneak Attacks . | . . . . . Combat Hostiles . | . . . . . Follow-up Attacks . | . . . . . Damage Inflicted 854 | 146 74 211 . 423 Guns 562 | 146 74 131 . 211 Cannons . | . . . . . Explosions . | . . . . . Melee 212 | . . . . 212 Ramming 8 | . . 8 . . Kinetic 509 | 146 74 114 . 175 Thermal 72 | . . 72 . . Explosive . | . . . . . Electromagnetic 53 | . . 17 . 36 Impact . | . . . . . Slashing 212 | . . . . 212 Piercing . | . . . . . Highest Corruption 11 | . 2 2 2 11 Average Corruption 2 | . 2 2 2 5 Corruption Purged . | . . . . . Corruption Blocked . | . . . . . Effects 35 | . 11 5 14 5 Message Errors 5 | . 2 . 3 . Matter Fused 12 | . 2 2 6 2 Energy Discharges 3 | . . 1 1 1 Parts Fused 1 | . 1 . . . Data Loss (minor) 7 | . 2 1 2 2 Data Loss (major) 4 | . 3 . 1 . Alerts 2 | . 1 . 1 . Weapon Failures 1 | . . 1 . . Overload Shots . | . . . . . Overflow Damage 12 | . . . . 12 Projectiles . | . . . . . Explosions . | . . . . . Melee 12 | . . . . 12 Knockbacks . | . . . . . Impact . | . . . . . Kinetic . | . . . . . Secondary . | . . . . . Self-Inflicted Damage . | . . . . . Shots . | . . . . . Rammed 2 | . . 2 . . Targets Rammed 2 | . . 2 . . Kicked . | . . . . . Crushed . | . . . . . Highest Temperature 197 | . 40 197 . 54 Average Temperature 51 | . 17 84 . 27 Received Heat Transfer 332 | . . 132 . 200 Siege Activations . | . . . . . Robots Corrupted . | . . . . . Combat Hostiles . | . . . . . Parts Fried . | . . . . . Impact Corruptions . | . . . . . Robots Melted . | . . . . . Combat Hostiles . | . . . . . Parts Melted . | . . . . . Heat Transferred 150 | . . 150 . . Parts Sabotaged . | . . . . . Parts Stolen . | . . . . . Parts Stripped . | . . . . . Power Chain Reactions . | . . . . . Alert | -11 -10 -10 -10 -9 ------- Run | Yrd Mat Min Exi Min Peak Influence 138 | 15 68 138 . 40 Initial 26 | . 9 26 . . Average 36 | 4 23 103 . 15 Maximum Alert Level . | . . . . . Low Security (%) 100 | 100 100 100 . 100 Level 1 . | . . . . . Level 2 . | . . . . . Level 3 . | . . . . . Level 4 . | . . . . . Level 5 . | . . . . . High Security . | . . . . . Max Security . | . . . . . Squads Dispatched 3 | . 3 . . . Investigation 2 | . 2 . . . Extermination . | . . . . . Reinforcement 1 | . 1 . . . Assault . | . . . . . Garrison . | . . . . . Intercept . | . . . . . Searches Triggered . | . . . . . Construction Impeded . | . . . . . Haulers Reinforced . | . . . . . Active Scanning Responses . | . . . . . Cargo Convoy Interrupts . | . . . . . Stealth | -11 -10 -10 -10 -9 --------- Run | Yrd Mat Min Exi Min Distress Signals 1 | . 1 . . . Communications Jammed . | . . . . . Distress Signals . | . . . . . Times Spotted 25 | . 6 5 . 14 Peak Tracking Total 4 | . 2 3 . 4 Tactical Retreats 2 | . . . . 2 Traps | -11 -10 -10 -10 -9 ------- Run | Yrd Mat Min Exi Min Traps Triggered 2 | . 2 . . . Indirectly . | . . . . . Trap Hack Attempts . | . . . . . Triggered . | . . . . . Disarmed . | . . . . . Reprogrammed . | . . . . . Reused . | . . . . . Traps Extracted . | . . . . . Installed . | . . . . . Triggered . | . . . . . Machines | -11 -10 -10 -10 -9 ---------- Run | Yrd Mat Min Exi Min Machines Disabled . | . . . . . Max in Single Turn . | . . . . . Machines Repaired . | . . . . . Machines Dismantled . | . . . . . Machines Sabotaged . | . . . . . Overloaded Fab Kills . | . . . . . Hacking | -11 -10 -10 -10 -9 --------- Run | Yrd Mat Min Exi Min Machines Accessed 11 | . 7 . 4 . Terminals 5 | . 5 . . . Fabricators . | . . . . . Repair Stations . | . . . . . Recycling Units 2 | . 2 . . . Scanalyzers . | . . . . . Garrison Access . | . . . . . Total Hacks 65 | . 16 . 49 . Successful 57 | . 8 . 49 . Failed 8 | . 8 . . . Catastrophic 2 | . 2 . . . Database Lockouts . | . . . . . Manual 10 | . 9 . 1 . Terminals 13 | . 13 . . . Fabricators . | . . . . . Repair Stations . | . . . . . Recycling Units 3 | . 3 . . . Scanalyzers . | . . . . . Garrison Access . | . . . . . Terminal Hacks 51 | . 2 . 49 . Record 49 | . . . 49 . Recall Investigation 1 | . 1 . . . Hauler Manifests 1 | . 1 . . . Fabricator Hacks . | . . . . . Repair Station Hacks . | . . . . . Recycling Unit Hacks 3 | . 3 . . . Report Inventory 2 | . 2 . . . Retrieve Matter 1 | . 1 . . . Scanalyzer . | . . . . . Garrison Access Hacks . | . . . . . Unauthorized Hacks 3 | . 3 . . . Terminals 3 | . 3 . . . Track 1 | . 1 . . . Botnet 2 | . 2 . . . Fabricators . | . . . . . Repair Stations . | . . . . . Recycling Units . | . . . . . Scanalyzers . | . . . . . Garrison Access . | . . . . . Data Cores Recovered . | . . . . . Used . | . . . . . Hacking Detections 5 | . 5 . . . Full Trace Events 1 | . 1 . . . Feedback Events . | . . . . . Feedback Blocked . | . . . . . Robot Schematics Acquired . | . . . . . Robots Built . | . . . . . Authchips . | . . . . . Time . | . . . . . Total Robot Build Rating . | . . . . . Part Schematics Acquired . | . . . . . Parts Built . | . . . . . Authchips . | . . . . . Time . | . . . . . Total Part Build Rating . | . . . . . Parts Repaired . | . . . . . Time . | . . . . . Parts Recycled . | . . . . . Recycled Matter . | . . . . . Retrieved Matter 68 | . 68 . . . Retrieved Components . | . . . . . Parts Scanalyzed . | . . . . . Part Schematics Acquired . | . . . . . Parts Damaged . | . . . . . Bothacking | -11 -10 -10 -10 -9 ------------ Run | Yrd Mat Min Exi Min Used RIF Installer . | . . . . . Robots Hacked . | . . . . . Non-combat . | . . . . . Combat . | . . . . . Robot Hacks Applied . | . . . . . Relay Couplers Released . | . . . . . Fabnet Peak Effective % . | . . . . . Robots Rewired . | . . . . . Allies Hacked . | . . . . . Hacks Repelled . | . . . . . Allies | -11 -10 -10 -10 -9 -------- Run | Yrd Mat Min Exi Min Total Allies . | . . . . . Largest Group . | . . . . . Highest-Rated Group . | . . . . . Highest-Rated Ally . | . . . . . Total Orders . | . . . . . Ally Attacks . | . . . . . Total Damage . | . . . . . Kills . | . . . . . Allies Corrupted . | . . . . . Allies Melted . | . . . . . Intel | -11 -10 -10 -10 -9 ------- Run | Yrd Mat Min Exi Min Robot Analysis Total . | . . . . . Derelict Logs Recovered 1 | . . 1 . . Drone Launches . | . . . . . Drone Recoveries . | . . . . . Exploration | -11 -10 -10 -10 -9 ------------- Run | Yrd Mat Min Exi Min Turns Passed 2647 | 123 772 307 1119 326 Spaces Moved 1507 | 54 443 156 695 159 Core 4 | 4 . . . . Treads 1408 | 50 443 156 695 64 Legs . | . . . . . Wheels 95 | . . . . 95 Hover . | . . . . . Flight . | . . . . . Fastest Speed 50 | 50 160 160 160 115 Average Speed 157 | 151 160 160 160 140 Slowest Speed 160 | 160 160 160 160 160 Overloaded Moves . | . . . . . Propulsion Burnouts . | . . . . . Robots Hopped . | . . . . . Cave-ins Triggered 1 | . . . . 1 Exploration Rate (%) 51 | 4 85 38 93 36 Regions Visited 4 Branch Regions 3 Pre-discovered Areas 2 | . . 1 1 . Known Exits Taken . | . . . . . Unknown Exits Taken 4 | 1 1 1 1 . Scrap Searched . | . . . . . Spaces Dug 12 | . 3 . . 9 Terrain Destroyed 14 | . 3 2 . 9 Melee 8 | . . . . 8 Projectile 6 | . 3 2 . 1 AOE . | . . . . . Terrain Rammed . | . . . . . Walls Destroyed . | . . . . . Machines Disabled . | . . . . . Actions | -11 -10 -10 -10 -9 --------- Run | Yrd Mat Min Exi Min Total 1661 | 74 491 181 705 210 Wait 24 | . 8 10 . 6 Move 1502 | 53 442 155 694 158 Hop . | . . . . . Pick Up 24 | 5 16 1 1 1 Fast Attach 11 | 7 1 . 2 1 Attach 6 | . 1 1 . 4 Detach 4 | . 1 . 3 . Swap 7 | . 3 . . 4 Drop 12 | . 9 . 3 . Fire 50 | 9 10 12 . 19 Melee 16 | . . . . 16 Ram . | . . . . . Kick . | . . . . . Crush 2 | . . 2 . . Escape Stasis 1 | . . . . 1 Rewire 2 | . . . 2 . Trap . | . . . . . Miscellaneous . | . . . . . Route ------- -11/Scrapyard -10/Materials (discovered 3 exits: [*Mat x2] / [*Min]) -10/Mines -10/Exiles (discovered 2 exits: [*Min x2]) -9/Mines (discovered 1 exit: [*Mat]) History --------- Turn | Location | Event 5 | -11/Scrapyard | Discovered new exit (range 14) 124 | -11/Scrapyard | Entered Materials 312 | -10/Materials | Build established: Mutant 379 | -10/Materials | Discovered new exit (range 16) 601 | -10/Materials | Discovered new exit (range 15) 869 | -10/Materials | Discovered new exit (range 11) 896 | -10/Materials | Entered Mines 999 | -10/Mines | Learned location of Zion (-6) 1196 | -10/Mines | Deemed a non-threat by the Exiles lab entrance 1196 | -10/Mines | Discovered new exit (range 5) 1203 | -10/Mines | Entered Exiles 1225 | -10/Exiles | Discovered new exit (range 16) 1243 | -10/Exiles | Met 8R-AWN 1276 | -10/Exiles | Met EX-HEX 1450 | -10/Exiles | Met EX-DEC 1599 | -10/Exiles | Discovered new exit (range 10) 1712 | -10/Exiles | Visited The Gauntlet 1972 | -10/Exiles | Met EX-BIN 2063 | -10/Exiles | Aligned with FarCom system 2064 | -10/Exiles | Given EX-Vault access code 2151 | -10/Exiles | Opened EX-Vault 2164 | -10/Exiles | Found Prototype Slashing Weapon 2164 | -10/Exiles | Identified Longsword +1 2197 | -10/Exiles | Warned to stay clear of 0b10 Research branches 2322 | -10/Exiles | Left Exiles lab with Longsword +1 2322 | -10/Exiles | Entered Mines 2432 | -9/Mines | Assembled infested the area 2476 | -9/Mines | Core integrity fell below 50% 2503 | -9/Mines | Lost 4 parts (2n2w) 2572 | -9/Mines | Discovered new exit (range 16) 2645 | -9/Mines | Crushed by falling debris 2646 | -9/Mines | Core integrity fell below 20% 2646 | -9/Mines | System corruption reached 10% 2648 | -9/Mines | Destroyed by YI-UF0 with YI-UF0's Doublenader Last Messages --------------- 02507_ Acquired 14 matter. 02508_ Acquired 19 matter. 02512_ Acquired 20 matter. 02513_ Acquired 15 matter. 02546_ System corrupted: Matter fused (-7). 02572_ EXIT=FOUND 02572_ U-05 Engineer destroyed. 02586_ System corrupted: Component data lost. 02587_ Destroyed Asb. Hover Unit. 02589_ as-61078 destroyed. 02594_ as-86538 destroyed. 02596_ Acquired 11 matter. 02598_ Acquired 18 matter. 02628_ System corrupted: Matter fused (-6). 02635_ The unstable cave ceiling collapses. [Achievement: Part-time Excavator] 02645_ The unstable cave ceiling collapses. 02645_ Crushed by falling debris. 02645_ Ion Engine destroyed. 02645_ System corrupted by crushing effect (+4). Map ----- +----------------------------------------------------+ | ???????????????????????????????????????????????# | | ???????????????????????????????????????????????# | | ???????????????????????????????????????????????# | | ???????????????????????????????????????????????# | | ?????????????????????????????????????????????### | | ????????????????????????????????????????????## | | ????????????????????????????????????????????# | | ????????????????????????????????????????????# | | ????????????????????????????????????????????## | | ?????????????????????????????????????????????#### | | ????????????????????????????????????????????????## | | ?????????????????????????????????????????????????# | | ????????????????????????????????????????????????## | | ??????????????????????????????????????????????### | | ?????????????????????????????????????????????## | | ?????????????????????????###########????????## | | ????????????? ??????###### ##??????## | | ?????????????# ? ### # ######## | | ????????????## ? # = | | ????????????# #??# % ## | | ????????????# ## #### #?## | | ??????????? % ##??####??## | | ??????????? # ############# | | ????????????# # ## ## ## | | ????????????# ### # | | ?????????????# @ ## ##### ### | | ?????????????### * # ; <#???# #?## | | ???????????????# # ## ## #???# ##### | | ???????????????# = g ####"" ##???# #? | | ?????????????# ##??#######????# ## #? | | ????????????# ???????????????# #??#? | | ???????????? <% ??????????????## #???? | | ???????????? ! ???????????### ##??? | | ????????????? # ??????????## #??? | | ????????????? # ??????????# """ #??? | | ?????????????? %# #? ??????????# """ #??? | | ??????????????# !#####??#=%!?????????## """ ##?? | | ???????????????? ?????????#! ??????????## """ #?? | | ??????????????????????????? ???????????# #? | | ??????????????????????????? ???????????# # | | ??????????????????????????? ????????????## # | | ?????????????????????????????????????????## ## | | ??????????????????????????????????????????#######? | | ?????????????????????????????????????????????????? | | ?????????????????????????????????????????????????? | | ?????????????????????????????????????????????????? | | ?????????????????????????????????????????????????? | | ?????????????????????????????????????????????????? | | ?????????????????????????????????????????????????? | | ?????????????????????????????????????????????????? | +----------------------------------------------------+ Best States ------------- Heat Dissipation 25 Energy Generation 10 Energy Capacity 250 Matter Stores 300 Matter Capacity 300 Sight Range 18 Terrain Scan Density 10 Armor Coverage 150 Evasion (%) 40 Recoil Reduction 2 Item Schematics ----------------- None Robot Schematics ------------------ None Fabricated ------------ Nothing Alien Tech Used ----------------- None Achievements -------------- Part-time Excavator Challenges ------------ None Game ------ Seed SpreadSlugNeutralizer Manual? 0 Play Time 00:28:58 Cumulative 8.3 hours Start 2024.04.04 @ 19:26:42 End 2024.04.04 @ 19:54:12 Sessions 1 Manual Loads 0 Difficulty Rogue Special Mode None Game No. 7 Rogue 5 Adventurer 2 Explorer 0 Win Type - Total 0 Types 0/0/0/0/0/0/0/0/0 Lore% 15 Gallery% 14 Achievement% 17 Wizard Run 0 Options --------- Layout 1 ASCII 0 Keyboard 1 Movement Numpad Keybinds 0 Fullscreen 2 Font 32/SmallcapsGlow Map View 50x35 Zoom Use 0% Tactical HUD 1 Map Filters NONE Filters NONE Steam 1 RUN: 50494f4a-b6b9-46a8-8440-09ab5fdf521d